[Event "*** Titled Tuesday Blitz"]
[Site "Chess.com"]
[Date "2019.09.03"]
[Round "9"]
[White "MarcoRiehle"]
[Black "Kildepiotr"]
[Result "1-0"]
[WhiteElo "2700"]
[BlackElo "2524"]
[TimeControl "180+2"]
[EndTime "17:02:27 PDT"]
[Termination "MarcoRiehle won by resignation"]

1. e4 {[%clk 0:03:01.9]} 1... g6 {[%clk 0:03:00.1]} 2. d4 {[%clk 0:03:00.9]}
2... Bg7 {[%clk 0:03:01.7]} 3. c4 {[%clk 0:03:01]} 3... d6 {[%clk 0:03:02]} 4.
Nc3 {[%clk 0:03:01.6]} 4... Nc6 {[%clk 0:02:53.4]} 5. Be3 {[%clk 0:03:01.2]}
5... e5 {[%clk 0:02:54.2]} 6. d5 {[%clk 0:03:00.8]} 6... Nd4 {[%clk 0:02:55.3]}
7. Nge2 {[%clk 0:03:00.9]} 7... Nxe2 {[%clk 0:02:56.2]} 8. Bxe2 {[%clk
0:03:02.8]} 8... Ne7 {[%clk 0:02:55.6]} 9. g4 {[%clk 0:03:02.3]} 9... c5 {[%clk
0:02:44.8]} 10. Qd2 {[%clk 0:03:00.1]} 10... O-O {[%clk 0:02:34.4]} 11. O-O-O
{[%clk 0:02:58.8]} 11... f5 {[%clk 0:02:27.2]} 12. gxf5 {[%clk 0:02:57.7]} 12...
gxf5 {[%clk 0:02:28.3]} 13. Bg5 {[%clk 0:02:59.1]} 13... f4 {[%clk 0:02:25.5]}
14. Rdg1 {[%clk 0:02:56.7]} 14... Kh8 {[%clk 0:02:25.5]} 15. Bh5 {[%clk
0:02:52.6]} 15... Bd7 {[%clk 0:02:23.5]} 16. f3 {[%clk 0:02:40.8]} 16... a6
{[%clk 0:02:15.6]} 17. Qg2 {[%clk 0:02:40.1]} 17... Be8 {[%clk 0:02:16]} 18. Bg4
{[%clk 0:02:32.1]} 18... h6 {[%clk 0:02:04.2]} 19. Bh4 {[%clk 0:02:28.5]} 19...
Ng6 {[%clk 0:02:04.9]} 20. Bxd8 {[%clk 0:02:28.1]} 1-0

[Event "*** Titled Tuesday Blitz"]
[Site "Chess.com"]
[Date "2019.09.03"]
[Round "9"]
[White "grzechu96"]
[Black "Valuebet2000"]
[Result "0-1"]
[WhiteElo "2584"]
[BlackElo "2515"]
[TimeControl "180+2"]
[EndTime "17:02:50 PDT"]
[Termination "Valuebet2000 won by resignation"]

1. e4 {[%clk 0:03:01.9]} 1... c6 {[%clk 0:02:59.2]} 2. d4 {[%clk 0:02:59.7]}
2... d5 {[%clk 0:03:01.1]} 3. Nc3 {[%clk 0:03:00.7]} 3... dxe4 {[%clk 0:03:02]}
4. Nxe4 {[%clk 0:03:02.3]} 4... Bf5 {[%clk 0:03:03.6]} 5. Ng3 {[%clk 0:03:03.4]}
5... Bg6 {[%clk 0:03:04.5]} 6. Nh3 {[%clk 0:03:04.5]} 6... e6 {[%clk 0:03:04.8]}
7. Nf4 {[%clk 0:03:04.3]} 7... Bd6 {[%clk 0:03:05.7]} 8. Ngh5 {[%clk 0:02:56.4]}
8... Bxh5 {[%clk 0:03:02.9]} 9. Nxh5 {[%clk 0:02:57.4]} 9... g6 {[%clk 0:03:04]}
10. Ng3 {[%clk 0:02:58.5]} 10... Nf6 {[%clk 0:03:05]} 11. Bd3 {[%clk 0:02:48.4]}
11... O-O {[%clk 0:02:51.8]} 12. c3 {[%clk 0:02:30.2]} 12... Nbd7 {[%clk
0:02:48.6]} 13. O-O {[%clk 0:02:31.1]} 13... e5 {[%clk 0:02:48.3]} 14. dxe5
{[%clk 0:02:28.7]} 14... Nxe5 {[%clk 0:02:49]} 15. Bc2 {[%clk 0:02:30]} 15...
Qc7 {[%clk 0:02:48.2]} 16. Bg5 {[%clk 0:02:30.2]} 16... Nd5 {[%clk 0:02:46.9]}
17. Ne4 {[%clk 0:02:29.2]} 17... Be7 {[%clk 0:02:38.9]} 18. Bh6 {[%clk
0:02:25.5]} 18... Rfe8 {[%clk 0:02:36.5]} 19. Bb3 {[%clk 0:02:17.5]} 19... Rad8
{[%clk 0:02:34.3]} 20. Qc2 {[%clk 0:02:14.8]} 20... Ng4 {[%clk 0:02:31]} 21. f4
{[%clk 0:02:09.7]} 21... Nxh6 {[%clk 0:02:23.8]} 0-1

[Event "*** Titled Tuesday Blitz"]
[Site "Chess.com"]
[Date "2019.09.03"]
[Round "9"]
[White "kosmeg"]
[Black "matiss90"]
[Result "0-1"]
[WhiteElo "2422"]
[BlackElo "2546"]
[TimeControl "180+2"]
[EndTime "17:03:27 PDT"]
[Termination "matiss90 won by resignation"]

1. d4 {[%clk 0:03:01.9]} 1... Nf6 {[%clk 0:03:00.7]} 2. c4 {[%clk 0:03:03.1]}
2... g6 {[%clk 0:03:01.8]} 3. Nc3 {[%clk 0:03:04]} 3... Bg7 {[%clk 0:03:03.6]}
4. e4 {[%clk 0:03:04.9]} 4... O-O {[%clk 0:03:05.5]} 5. Be2 {[%clk 0:03:06.5]}
5... d6 {[%clk 0:03:06.9]} 6. Bg5 {[%clk 0:03:07.5]} 6... h6 {[%clk 0:03:07.9]}
7. Be3 {[%clk 0:03:07.7]} 7... e5 {[%clk 0:03:05.1]} 8. d5 {[%clk 0:03:08.4]}
8... a5 {[%clk 0:03:04.7]} 9. g4 {[%clk 0:03:05.4]} 9... Na6 {[%clk 0:03:05.9]}
10. h4 {[%clk 0:03:00.8]} 10... Nc5 {[%clk 0:03:06.6]} 11. f3 {[%clk 0:03:01.6]}
11... c6 {[%clk 0:03:07.7]} 12. h5 {[%clk 0:02:59.5]} 12... g5 {[%clk
0:03:08.3]} 13. Nh3 {[%clk 0:02:56]} 13... a4 {[%clk 0:03:05.2]} 14. O-O {[%clk
0:02:56.3]} 14... Nxh5 {[%clk 0:03:05.1]} 15. Nxg5 {[%clk 0:02:46.6]} 15... Nf4
{[%clk 0:03:05.7]} 16. Bxf4 {[%clk 0:02:41]} 16... exf4 {[%clk 0:03:06.6]} 17.
Nh3 {[%clk 0:02:42.9]} 17... a3 {[%clk 0:03:06.3]} 18. b4 {[%clk 0:02:15.4]}
18... Qh4 {[%clk 0:02:56.6]} 19. bxc5 {[%clk 0:02:09.1]} 19... Qxh3 {[%clk
0:02:50.9]} 20. Rc1 {[%clk 0:02:04.9]} 20... dxc5 {[%clk 0:02:50.8]} 21. e5
{[%clk 0:01:50.8]} 21... Bxe5 {[%clk 0:02:50.1]} 22. Ne4 {[%clk 0:01:52]} 22...
Bd4+ {[%clk 0:02:51]} 23. Rf2 {[%clk 0:01:53.4]} 23... f5 {[%clk 0:02:39.4]} 24.
gxf5 {[%clk 0:01:49.9]} 24... Bxf5 {[%clk 0:02:18.9]} 0-1

[Event "*** Titled Tuesday Blitz"]
[Site "Chess.com"]
[Date "2019.09.03"]
[Round "9"]
[White "yiy1156"]
[Black "TreabharMakernes"]
[Result "1-0"]
[WhiteElo "2563"]
[BlackElo "2362"]
[TimeControl "180+2"]
[EndTime "17:05:11 PDT"]
[Termination "yiy1156 won by resignation"]

1. e4 {[%clk 0:02:38.5]} 1... e5 {[%clk 0:02:58.9]} 2. Nf3 {[%clk 0:02:39.6]}
2... Nc6 {[%clk 0:02:59.4]} 3. Bb5 {[%clk 0:02:40.9]} 3... Nge7 {[%clk
0:02:59.4]} 4. O-O {[%clk 0:02:36.8]} 4... g6 {[%clk 0:02:58.7]} 5. c3 {[%clk
0:02:37.7]} 5... a6 {[%clk 0:02:58]} 6. Ba4 {[%clk 0:02:39.1]} 6... Bg7 {[%clk
0:02:58.6]} 7. d4 {[%clk 0:02:39.9]} 7... exd4 {[%clk 0:02:58.2]} 8. cxd4 {[%clk
0:02:41.8]} 8... b5 {[%clk 0:02:58.1]} 9. Bb3 {[%clk 0:02:42.4]} 9... O-O {[%clk
0:02:58.1]} 10. Nc3 {[%clk 0:02:43]} 10... d6 {[%clk 0:02:55.4]} 11. h3 {[%clk
0:02:41.6]} 11... Na5 {[%clk 0:02:53]} 12. Bc2 {[%clk 0:02:41.7]} 12... c5
{[%clk 0:02:52.3]} 13. Re1 {[%clk 0:02:40.1]} 13... Nec6 {[%clk 0:02:36.5]} 14.
Bg5 {[%clk 0:02:37.4]} 14... Qb6 {[%clk 0:02:30.8]} 15. Nd5 {[%clk 0:02:35.5]}
15... Qa7 {[%clk 0:02:21.5]} 16. dxc5 {[%clk 0:02:34.2]} 16... dxc5 {[%clk
0:02:16.2]} 17. e5 {[%clk 0:02:28.3]} 17... Be6 {[%clk 0:01:53.3]} 18. Nf6+
{[%clk 0:02:22.9]} 18... Kh8 {[%clk 0:01:52.6]} 19. Qd2 {[%clk 0:02:18.9]} 19...
Nb4 {[%clk 0:01:40]} 20. Be4 {[%clk 0:02:02.3]} 20... Rac8 {[%clk 0:00:19.5]}
21. Qf4 {[%clk 0:01:57.3]} 21... h5 {[%clk 0:00:16.4]} 22. Qh4 {[%clk
0:01:52.1]} 22... Bxf6 {[%clk 0:00:16]} 23. Bxf6+ {[%clk 0:01:50.6]} 23... Kg8
{[%clk 0:00:14.9]} 24. Qg5 {[%clk 0:01:51]} 1-0

[Event "*** Titled Tuesday Blitz"]
[Site "Chess.com"]
[Date "2019.09.03"]
[Round "9"]
[White "bluejay1897"]
[Black "Svet99"]
[Result "1-0"]
[WhiteElo "2298"]
[BlackElo "2151"]
[TimeControl "180+2"]
[EndTime "17:05:13 PDT"]
[Termination "bluejay1897 won by resignation"]

1. Nf3 {[%clk 0:03:01.9]} 1... d5 {[%clk 0:02:59.8]} 2. g3 {[%clk 0:02:59.6]}
2... Nf6 {[%clk 0:03:00]} 3. Bg2 {[%clk 0:03:00.6]} 3... c6 {[%clk 0:03:00.5]}
4. O-O {[%clk 0:02:57.3]} 4... Bf5 {[%clk 0:03:00.6]} 5. c4 {[%clk 0:02:56.8]}
5... Nbd7 {[%clk 0:02:59.6]} 6. d4 {[%clk 0:02:56.7]} 6... e6 {[%clk 0:02:59.8]}
7. Nbd2 {[%clk 0:02:52.2]} 7... Be7 {[%clk 0:02:58.6]} 8. b3 {[%clk 0:02:50]}
8... O-O {[%clk 0:02:58.9]} 9. Bb2 {[%clk 0:02:50.8]} 9... a5 {[%clk 0:02:57.9]}
10. a3 {[%clk 0:02:50.4]} 10... a4 {[%clk 0:02:57.1]} 11. b4 {[%clk 0:02:51]}
11... dxc4 {[%clk 0:02:57.7]} 12. Nxc4 {[%clk 0:02:51.5]} 12... Be4 {[%clk
0:02:56.8]} 13. Rc1 {[%clk 0:02:48]} 13... Bd5 {[%clk 0:02:57.4]} 14. Ncd2
{[%clk 0:02:43.2]} 14... Ne4 {[%clk 0:02:45.2]} 15. Re1 {[%clk 0:02:31.5]} 15...
Nxd2 {[%clk 0:02:44]} 16. Qxd2 {[%clk 0:02:32.3]} 16... Nf6 {[%clk 0:02:44.1]}
17. e3 {[%clk 0:02:09.5]} 17... Ne4 {[%clk 0:02:43.1]} 18. Qd3 {[%clk
0:02:09.5]} 18... Nd6 {[%clk 0:02:42.5]} 19. e4 {[%clk 0:02:06.3]} 19... Bb3
{[%clk 0:02:41]} 20. Nd2 {[%clk 0:02:07.1]} 20... Nb5 {[%clk 0:02:36.6]} 21. h4
{[%clk 0:01:22]} 21... Bf6 {[%clk 0:02:31.6]} 22. e5 {[%clk 0:01:20.5]} 22...
Be7 {[%clk 0:02:26.2]} 23. Nxb3 {[%clk 0:01:20.4]} 23... axb3 {[%clk 0:02:26.7]}
24. Ra1 {[%clk 0:01:20.6]} 24... Qb6 {[%clk 0:02:21.9]} 25. Re4 {[%clk 0:01:15]}
25... Rfd8 {[%clk 0:02:20.2]} 26. h5 {[%clk 0:01:15.9]} 26... c5 {[%clk
0:02:09.1]} 27. bxc5 {[%clk 0:01:06.2]} 27... Bxc5 {[%clk 0:01:50]} 28. dxc5
{[%clk 0:00:51.7]} 28... Rxd3 {[%clk 0:01:50.6]} 29. cxb6 {[%clk 0:00:52.7]}
29... Rd2 {[%clk 0:01:51.7]} 30. Rb1 {[%clk 0:00:53]} 30... Nxa3 {[%clk
0:01:52]} 31. Bxa3 {[%clk 0:00:53.6]} 31... Rxa3 {[%clk 0:01:52.7]} 32. Rb4
{[%clk 0:00:54.4]} 32... Rd3 {[%clk 0:01:51.7]} 33. Bxb7 {[%clk 0:00:55.1]} 1-0

[Event "*** Titled Tuesday Blitz"]
[Site "Chess.com"]
[Date "2019.09.03"]
[Round "9"]
[White "a_kandil"]
[Black "Gubajdullin"]
[Result "0-1"]
[WhiteElo "2424"]
[BlackElo "2599"]
[TimeControl "180+2"]
[EndTime "17:05:24 PDT"]
[Termination "Gubajdullin won by resignation"]

1. e4 {[%clk 0:03:01.9]} 1... c6 {[%clk 0:03:00.8]} 2. d4 {[%clk 0:02:59.5]}
2... d5 {[%clk 0:03:01.6]} 3. exd5 {[%clk 0:03:01.4]} 3... cxd5 {[%clk
0:03:02.3]} 4. c4 {[%clk 0:03:03.1]} 4... Nf6 {[%clk 0:03:01.7]} 5. Nc3 {[%clk
0:03:04.5]} 5... e6 {[%clk 0:03:02.2]} 6. Nf3 {[%clk 0:02:59.1]} 6... Bb4 {[%clk
0:03:02.8]} 7. cxd5 {[%clk 0:02:59.3]} 7... Nxd5 {[%clk 0:03:03.1]} 8. Bd2
{[%clk 0:03:00.7]} 8... Nc6 {[%clk 0:03:03.9]} 9. Bc4 {[%clk 0:02:57.6]} 9...
Nf6 {[%clk 0:03:02.7]} 10. O-O {[%clk 0:02:56]} 10... O-O {[%clk 0:03:03.3]} 11.
a3 {[%clk 0:02:47.9]} 11... Be7 {[%clk 0:03:02]} 12. Bg5 {[%clk 0:02:47.1]}
12... h6 {[%clk 0:02:57.6]} 13. Bh4 {[%clk 0:02:46.6]} 13... Nh5 {[%clk
0:02:58.6]} 14. Bxe7 {[%clk 0:02:44.3]} 14... Nxe7 {[%clk 0:02:59.4]} 15. Ne5
{[%clk 0:02:43.4]} 15... Nf4 {[%clk 0:02:58.3]} 16. Qd2 {[%clk 0:02:26.6]} 16...
Neg6 {[%clk 0:02:51.4]} 17. Nxg6 {[%clk 0:02:22.9]} 17... fxg6 {[%clk
0:02:45.1]} 18. Rad1 {[%clk 0:02:12.9]} 18... b5 {[%clk 0:02:42.8]} 19. Bxb5
{[%clk 0:02:07.4]} 19... Bb7 {[%clk 0:02:43]} 20. f3 {[%clk 0:02:08.4]} 20...
Qg5 {[%clk 0:02:40.7]} 21. Bc4 {[%clk 0:01:58.4]} 21... Rad8 {[%clk 0:02:29.4]}
22. Ne4 {[%clk 0:01:56.5]} 22... Bxe4 {[%clk 0:02:26]} 23. fxe4 {[%clk
0:01:58.4]} 23... Rxd4 {[%clk 0:02:25.8]} 24. Bxe6+ {[%clk 0:01:13.5]} 24... Kh7
{[%clk 0:02:25.6]} 25. Qc2 {[%clk 0:01:12.6]} 25... Rxd1 {[%clk 0:02:18.3]} 26.
Rxd1 {[%clk 0:01:14.5]} 26... Nh3+ {[%clk 0:02:16.3]} 27. Kh1 {[%clk 0:01:14.8]}
27... Nf2+ {[%clk 0:02:16.2]} 28. Kg1 {[%clk 0:01:14.3]} 28... Nxd1 {[%clk
0:02:13.7]} 29. Qxd1 {[%clk 0:01:16.2]} 29... Qe3+ {[%clk 0:02:13.6]} 30. Kh1
{[%clk 0:01:17.7]} 30... Qxe4 {[%clk 0:02:06.3]} 31. Bb3 {[%clk 0:01:12.5]}
31... Re8 {[%clk 0:01:52.2]} 32. h3 {[%clk 0:01:09.1]} 32... Qf4 {[%clk
0:01:51.8]} 33. Bc4 {[%clk 0:01:00.7]} 33... Qxc4 {[%clk 0:01:51.4]} 34. Qd7
{[%clk 0:00:58.3]} 34... Qc1+ {[%clk 0:01:50.7]} 35. Kh2 {[%clk 0:01:00.2]}
35... Qf4+ {[%clk 0:01:51.3]} 36. g3 {[%clk 0:01:00]} 36... Qf2+ {[%clk
0:01:50.9]} 0-1

[Event "*** Titled Tuesday Blitz"]
[Site "Chess.com"]
[Date "2019.09.03"]
[Round "9"]
[White "ChristopherYoo"]
[Black "laboratorio25"]
[Result "1-0"]
[WhiteElo "2583"]
[BlackElo "2411"]
[TimeControl "180+2"]
[EndTime "17:05:44 PDT"]
[Termination "ChristopherYoo won by resignation"]

1. e4 {[%clk 0:03:01.9]} 1... c5 {[%clk 0:02:57.7]} 2. Nf3 {[%clk 0:03:02.6]}
2... d6 {[%clk 0:02:58.3]} 3. d4 {[%clk 0:02:59.9]} 3... cxd4 {[%clk 0:03:00.2]}
4. Nxd4 {[%clk 0:03:01.6]} 4... Nf6 {[%clk 0:02:57.2]} 5. Nc3 {[%clk 0:03:02.8]}
5... g6 {[%clk 0:02:58.3]} 6. Be3 {[%clk 0:03:02.7]} 6... Bg7 {[%clk 0:02:58.8]}
7. f3 {[%clk 0:03:04.2]} 7... Nc6 {[%clk 0:02:58.5]} 8. Qd2 {[%clk 0:03:04.6]}
8... O-O {[%clk 0:02:58.9]} 9. O-O-O {[%clk 0:03:05.8]} 9... d5 {[%clk
0:02:59.6]} 10. Qe1 {[%clk 0:03:06.8]} 10... e5 {[%clk 0:02:55.7]} 11. Nxc6
{[%clk 0:03:07.6]} 11... bxc6 {[%clk 0:02:57.6]} 12. exd5 {[%clk 0:03:08.8]}
12... Nxd5 {[%clk 0:02:56.3]} 13. Bc4 {[%clk 0:03:08.6]} 13... Be6 {[%clk
0:02:57.1]} 14. Kb1 {[%clk 0:03:09.4]} 14... Rb8 {[%clk 0:02:36.1]} 15. Bb3
{[%clk 0:03:05]} 15... a5 {[%clk 0:02:33.5]} 16. Ne4 {[%clk 0:03:04]} 16... Qc7
{[%clk 0:02:25.2]} 17. Bc5 {[%clk 0:03:02.3]} 17... Rfd8 {[%clk 0:02:24.3]} 18.
g4 {[%clk 0:02:44.5]} 18... h6 {[%clk 0:02:11.6]} 19. g5 {[%clk 0:02:33.5]}
19... h5 {[%clk 0:01:52.2]} 20. Rg1 {[%clk 0:02:31.8]} 20... Qb7 {[%clk
0:01:45.9]} 21. Qxa5 {[%clk 0:02:27.6]} 21... Ra8 {[%clk 0:01:34.5]} 22. Qe1
{[%clk 0:02:28.3]} 22... Qb5 {[%clk 0:01:13.8]} 23. c4 {[%clk 0:02:25.6]} 23...
Qa6 {[%clk 0:01:10.7]} 24. cxd5 {[%clk 0:02:24.1]} 24... cxd5 {[%clk 0:01:10.9]}
25. Nf6+ {[%clk 0:02:12.6]} 25... Bxf6 {[%clk 0:01:07.5]} 26. gxf6 {[%clk
0:02:14.5]} 26... Bf5+ {[%clk 0:01:08.4]} 27. Ka1 {[%clk 0:02:13.8]} 27... Rdc8
{[%clk 0:01:03.1]} 28. Qe3 {[%clk 0:01:41.3]} 28... d4 {[%clk 0:00:50.3]} 29.
Qxe5 {[%clk 0:01:31.9]} 29... Qa5 {[%clk 0:00:27.1]} 30. Qxf5 {[%clk 0:01:28.3]}
1-0

[Event "*** Titled Tuesday Blitz"]
[Site "Chess.com"]
[Date "2019.09.03"]
[Round "9"]
[White "MathiasWomacka"]
[Black "Kazmin_Dmitrij"]
[Result "1-0"]
[WhiteElo "2204"]
[BlackElo "2288"]
[TimeControl "180+2"]
[EndTime "17:06:00 PDT"]
[Termination "MathiasWomacka won by resignation"]

1. e4 {[%clk 0:03:01.9]} 1... c5 {[%clk 0:02:53.2]} 2. Nf3 {[%clk 0:03:01.3]}
2... d6 {[%clk 0:02:54.1]} 3. d4 {[%clk 0:03:02.4]} 3... cxd4 {[%clk 0:02:53.5]}
4. Nxd4 {[%clk 0:03:04.3]} 4... Nf6 {[%clk 0:02:54.1]} 5. Nc3 {[%clk 0:03:05.8]}
5... Nc6 {[%clk 0:02:55.1]} 6. Be2 {[%clk 0:03:06.5]} 6... Bd7 {[%clk
0:02:42.5]} 7. O-O {[%clk 0:03:03.4]} 7... g6 {[%clk 0:02:32.8]} 8. Nb3 {[%clk
0:03:00]} 8... Bg7 {[%clk 0:02:32.4]} 9. Re1 {[%clk 0:03:01.5]} 9... O-O {[%clk
0:02:32.6]} 10. Bf1 {[%clk 0:03:02.9]} 10... Rc8 {[%clk 0:02:32]} 11. Bg5 {[%clk
0:02:58.5]} 11... Ne5 {[%clk 0:02:22.1]} 12. Nd5 {[%clk 0:02:55.3]} 12... Nxd5
{[%clk 0:02:01.3]} 13. exd5 {[%clk 0:02:57.2]} 13... h6 {[%clk 0:01:56.9]} 14.
Bh4 {[%clk 0:02:57.5]} 14... g5 {[%clk 0:01:53.4]} 15. Bg3 {[%clk 0:02:58.3]}
15... Ng6 {[%clk 0:01:50.7]} 16. c3 {[%clk 0:02:54.4]} 16... a6 {[%clk
0:01:31.8]} 17. Bd3 {[%clk 0:02:20.4]} 17... Ne5 {[%clk 0:01:29.8]} 18. Bc2
{[%clk 0:02:20.7]} 18... Nc4 {[%clk 0:00:59.7]} 19. Rb1 {[%clk 0:02:20.5]} 19...
b5 {[%clk 0:00:48]} 20. Nd4 {[%clk 0:02:18.8]} 20... Rc5 {[%clk 0:00:33]} 21.
Nf5 {[%clk 0:02:16.4]} 21... Bxf5 {[%clk 0:00:33.5]} 22. Bxf5 {[%clk 0:02:18.3]}
22... Ne5 {[%clk 0:00:23]} 23. h4 {[%clk 0:02:11.3]} 23... Qa8 {[%clk
0:00:21.6]} 24. hxg5 {[%clk 0:02:07.3]} 24... hxg5 {[%clk 0:00:18.9]} 25. Qh5
{[%clk 0:02:07.2]} 25... Ng6 {[%clk 0:00:16.9]} 26. Bxg6 {[%clk 0:01:59.4]}
26... fxg6 {[%clk 0:00:18.1]} 27. Qxg6 {[%clk 0:02:00.9]} 27... Qxd5 {[%clk
0:00:16.6]} 28. Rxe7 {[%clk 0:02:00.7]} 28... Rf7 {[%clk 0:00:15.8]} 29. Re8+
{[%clk 0:01:56]} 29... Rf8 {[%clk 0:00:15.8]} 30. Rxf8+ {[%clk 0:01:53.8]} 30...
Kxf8 {[%clk 0:00:16.5]} 31. Bxd6+ {[%clk 0:01:54.7]} 31... Kg8 {[%clk
0:00:15.6]} 32. Bxc5 {[%clk 0:01:54.5]} 32... Qxc5 {[%clk 0:00:16.9]} 33. Re1
{[%clk 0:01:54.4]} 1-0

[Event "*** Titled Tuesday Blitz"]
[Site "Chess.com"]
[Date "2019.09.03"]
[Round "9"]
[White "SelfishShellfish"]
[Black "TheFireChess"]
[Result "0-1"]
[WhiteElo "2215"]
[BlackElo "2507"]
[TimeControl "180+2"]
[EndTime "17:06:15 PDT"]
[Termination "TheFireChess won by checkmate"]

1. e4 {[%clk 0:03:01.9]} 1... c6 {[%clk 0:03:00.9]} 2. d4 {[%clk 0:03:01]} 2...
d5 {[%clk 0:03:02.8]} 3. e5 {[%clk 0:03:01.1]} 3... c5 {[%clk 0:03:03.9]} 4.
dxc5 {[%clk 0:03:00.2]} 4... Nc6 {[%clk 0:03:05.5]} 5. f4 {[%clk 0:02:56.4]}
5... Nh6 {[%clk 0:03:05.9]} 6. Be3 {[%clk 0:02:44]} 6... Bg4 {[%clk 0:03:03.8]}
7. Qd2 {[%clk 0:02:34.4]} 7... e6 {[%clk 0:02:57.8]} 8. c3 {[%clk 0:02:31.4]}
8... a5 {[%clk 0:02:47.5]} 9. Na3 {[%clk 0:02:32]} 9... Be7 {[%clk 0:02:41.8]}
10. Nb5 {[%clk 0:02:31.8]} 10... O-O {[%clk 0:02:43.2]} 11. h3 {[%clk
0:02:21.4]} 11... Bh5 {[%clk 0:02:40]} 12. g4 {[%clk 0:02:21.1]} 12... Bg6
{[%clk 0:02:29.5]} 13. Nf3 {[%clk 0:02:22]} 13... Be4 {[%clk 0:02:24.9]} 14. Bg2
{[%clk 0:02:23.2]} 14... f6 {[%clk 0:01:48.1]} 15. exf6 {[%clk 0:02:22.9]} 15...
gxf6 {[%clk 0:01:47.6]} 16. f5 {[%clk 0:02:18.7]} 16... Nf7 {[%clk 0:01:48]} 17.
fxe6 {[%clk 0:02:19.9]} 17... Nfe5 {[%clk 0:01:49.1]} 18. Nxe5 {[%clk
0:02:15.4]} 18... Bxg2 {[%clk 0:01:48.6]} 19. Nxc6 {[%clk 0:02:07.4]} 19... bxc6
{[%clk 0:01:48.1]} 20. Qxg2 {[%clk 0:02:08.1]} 20... cxb5 {[%clk 0:01:48.8]} 21.
O-O-O {[%clk 0:02:04.7]} 21... Qc7 {[%clk 0:01:34.3]} 22. Rxd5 {[%clk
0:01:59.9]} 22... Ra6 {[%clk 0:01:02.3]} 23. Rd7 {[%clk 0:01:58.2]} 23... Qe5
{[%clk 0:01:02.3]} 24. Rxe7 {[%clk 0:01:48]} 24... Qxe3+ {[%clk 0:01:02.6]} 25.
Qd2 {[%clk 0:01:42.3]} 25... Qxc5 {[%clk 0:01:02.7]} 26. Qd7 {[%clk 0:01:42.3]}
26... Qg5+ {[%clk 0:00:52.6]} 27. Kb1 {[%clk 0:01:40.8]} 27... b4 {[%clk
0:00:53.8]} 28. cxb4 {[%clk 0:01:30.4]} 28... axb4 {[%clk 0:00:52.4]} 29. Ka1
{[%clk 0:01:19.5]} 29... b3 {[%clk 0:00:36.1]} 30. a3 {[%clk 0:01:15.6]} 30...
Rxa3+ {[%clk 0:00:20.3]} 31. bxa3 {[%clk 0:01:16.8]} 31... Qe5+ {[%clk
0:00:21.5]} 32. Kb1 {[%clk 0:01:14.3]} 32... Qe4+ {[%clk 0:00:22.9]} 33. Kb2
{[%clk 0:01:15.1]} 33... Qc2+ {[%clk 0:00:23.2]} 34. Ka1 {[%clk 0:01:14.4]}
34... Qa2# {[%clk 0:00:25.1]} 0-1

[Event "*** Titled Tuesday Blitz"]
[Site "Chess.com"]
[Date "2019.09.03"]
[Round "9"]
[White "ElGasanov"]
[Black "gena217"]
[Result "0-1"]
[WhiteElo "2685"]
[BlackElo "2909"]
[TimeControl "180+2"]
[EndTime "17:06:34 PDT"]
[Termination "gena217 won by resignation"]

1. e4 {[%clk 0:03:01.9]} 1... c6 {[%clk 0:02:59.6]} 2. d3 {[%clk 0:02:58.9]}
2... d5 {[%clk 0:03:01.5]} 3. Nd2 {[%clk 0:03:00.5]} 3... e5 {[%clk 0:03:02.2]}
4. Ngf3 {[%clk 0:03:01.9]} 4... Bd6 {[%clk 0:03:03.4]} 5. g3 {[%clk 0:03:03]}
5... f5 {[%clk 0:03:02]} 6. Bg2 {[%clk 0:02:59.8]} 6... Nf6 {[%clk 0:03:02.6]}
7. O-O {[%clk 0:03:00.9]} 7... O-O {[%clk 0:03:03.5]} 8. Re1 {[%clk 0:03:01.8]}
8... Re8 {[%clk 0:02:07.5]} 9. c3 {[%clk 0:02:51.6]} 9... a5 {[%clk 0:02:04.6]}
10. b3 {[%clk 0:02:26.3]} 10... Na6 {[%clk 0:02:00.6]} 11. Qc2 {[%clk
0:02:14.2]} 11... Nc5 {[%clk 0:01:53.3]} 12. exd5 {[%clk 0:02:10.5]} 12... e4
{[%clk 0:01:40.8]} 13. dxe4 {[%clk 0:02:01.5]} 13... fxe4 {[%clk 0:01:41.3]} 14.
Nd4 {[%clk 0:01:52.9]} 14... cxd5 {[%clk 0:01:41.4]} 15. Bf1 {[%clk 0:01:35.2]}
15... Ng4 {[%clk 0:01:37.1]} 16. Bb5 {[%clk 0:00:55.2]} 16... Rf8 {[%clk
0:01:36.9]} 17. Re2 {[%clk 0:00:48.4]} 17... Ne5 {[%clk 0:01:13.6]} 18. Ba3
{[%clk 0:00:41.6]} 18... Bg4 {[%clk 0:01:11.3]} 19. Bxc5 {[%clk 0:00:32.9]}
19... Bxc5 {[%clk 0:01:13.2]} 20. Re3 {[%clk 0:00:31.9]} 20... Rc8 {[%clk
0:01:07]} 21. Qb2 {[%clk 0:00:26.4]} 21... Qf6 {[%clk 0:01:07.6]} 22. Nf1 {[%clk
0:00:24.8]} 22... Bxd4 {[%clk 0:01:05.4]} 23. cxd4 {[%clk 0:00:26.4]} 23... Nf3+
{[%clk 0:01:06.9]} 24. Kh1 {[%clk 0:00:28]} 24... Bh3 {[%clk 0:00:59.5]} 25. Be2
{[%clk 0:00:26.3]} 25... Ne1 {[%clk 0:00:49]} 26. f4 {[%clk 0:00:21.3]} 26...
exf3 {[%clk 0:00:46.4]} 27. Rxe1 {[%clk 0:00:17.2]} 27... Bg2+ {[%clk
0:00:47.2]} 28. Kg1 {[%clk 0:00:17.1]} 28... f2+ {[%clk 0:00:48.5]} 29. Kxg2
{[%clk 0:00:18.7]} 29... fxe1=Q {[%clk 0:00:49.9]} 0-1

[Event "*** Titled Tuesday Blitz"]
[Site "Chess.com"]
[Date "2019.09.03"]
[Round "9"]
[White "PchelkinVK"]
[Black "13MiRacLe"]
[Result "0-1"]
[WhiteElo "2477"]
[BlackElo "2686"]
[TimeControl "180+2"]
[EndTime "17:06:35 PDT"]
[Termination "13MiRacLe won on time"]

1. d4 {[%clk 0:02:51.4]} 1... Nf6 {[%clk 0:03:00.1]} 2. Nc3 {[%clk 0:02:52.8]}
2... d5 {[%clk 0:03:00.6]} 3. Bf4 {[%clk 0:02:54.1]} 3... e6 {[%clk 0:03:00.6]}
4. a3 {[%clk 0:02:54.3]} 4... c5 {[%clk 0:02:58.2]} 5. e3 {[%clk 0:02:40.9]}
5... Be7 {[%clk 0:02:54.2]} 6. Nf3 {[%clk 0:02:21.2]} 6... O-O {[%clk
0:02:54.4]} 7. dxc5 {[%clk 0:02:21.8]} 7... Bxc5 {[%clk 0:02:54.5]} 8. Bd3
{[%clk 0:02:23]} 8... Nc6 {[%clk 0:02:52.8]} 9. Bg5 {[%clk 0:02:22.6]} 9... Be7
{[%clk 0:02:50.8]} 10. O-O {[%clk 0:02:18.6]} 10... Bd7 {[%clk 0:02:35.7]} 11.
Qe2 {[%clk 0:02:18.6]} 11... Rc8 {[%clk 0:02:35.8]} 12. Rad1 {[%clk 0:02:02.7]}
12... h6 {[%clk 0:02:36.1]} 13. Bh4 {[%clk 0:02:03.1]} 13... Qb6 {[%clk
0:02:34.4]} 14. Rb1 {[%clk 0:01:26.3]} 14... Rfd8 {[%clk 0:02:14.6]} 15. Rfd1
{[%clk 0:01:26.1]} 15... Be8 {[%clk 0:02:13.3]} 16. e4 {[%clk 0:01:20.2]} 16...
d4 {[%clk 0:02:10.7]} 17. e5 {[%clk 0:01:19.2]} 17... Nxe5 {[%clk 0:01:58.8]}
18. Nxe5 {[%clk 0:01:04.5]} 18... dxc3 {[%clk 0:01:59.6]} 19. bxc3 {[%clk
0:00:56.3]} 19... Qc7 {[%clk 0:01:47.6]} 20. c4 {[%clk 0:00:54.7]} 20... b6
{[%clk 0:01:41.2]} 21. Bxf6 {[%clk 0:00:33.1]} 21... Bxf6 {[%clk 0:01:36.6]} 22.
Ng4 {[%clk 0:00:34]} 22... Bd4 {[%clk 0:01:27.8]} 23. Qe4 {[%clk 0:00:32.6]}
23... Kf8 {[%clk 0:01:14.9]} 24. Be2 {[%clk 0:00:17.3]} 24... Bc6 {[%clk
0:01:05]} 25. Qh7 {[%clk 0:00:09.7]} 25... Qf4 {[%clk 0:01:05.5]} 26. h3 {[%clk
0:00:04]} 26... Be4 {[%clk 0:01:01.4]} 0-1